bitfinex/quotes_BTCUSD_20240815
["timestamp","ask_amount","ask_price","bid_price","bid_amount"]
[1723692077480,0.599217,58507.0,58506.0,0.0957053]
[1723692077688,0.598217,58507.0,58506.0,0.0957053]
[1723692078121,0.599217,58507.0,58506.0,0.0957053]
[1723692078797,0.599217,58507.0,58506.0,0.10527583]
[1723692079006,0.599217,58507.0,58506.0,0.10427583]
[1723692079357,0.598217,58507.0,58506.0,0.10527583]
[1723692079928,0.598217,58507.0,58506.0,0.10427583]
[1723692080245,0.598217,58507.0,58506.0,0.10527583]
[1723692081862,0.599217,58507.0,58506.0,0.10527583]
[1723692082124,0.838504,58507.0,58506.0,0.10527583]
[1723692082382,0.599217,58507.0,58506.0,0.10527583]
[1723692082566,0.599217,58507.0,58506.0,0.0957053]
[1723692082760,0.900904,58507.0,58506.0,0.0957053]
[1723692082988,0.900904,58507.0,58506.0,0.0019053]
[1723692083182,0.953904,58507.0,58506.0,0.0019053]
[1723692083386,1.743904,58507.0,58506.0,0.0019053]
[1723692083527,1.193191,58507.0,58506.0,0.0019053]
[1723692083739,0.953904,58507.0,58506.0,0.0009053]
[1723692084193,1.193191,58507.0,58506.0,0.0009053]
[1723692084399,1.953191,58507.0,58506.0,0.0009053]
[1723692084607,2.02970591,58507.0,58506.0,0.0009053]
[1723692085040,2.02970591,58507.0,58494.0,0.0009053]
[1723692085041,0.952876,58495.0,58494.0,0.0009053]
[1723692085325,3.31904274,58495.0,58494.0,0.0009053]
[1723692085530,3.39713691,58495.0,58494.0,0.0009053]
[1723692085925,2.52904274,58495.0,58494.0,0.0009053]
[1723692087500,2.52904274,58495.0,58494.0,0.0029053]
[1723692087501,2.53304274,58495.0,58494.0,0.0029053]
[1723692088418,2.60606217,58495.0,58494.0,0.0029053]
[1723692088624,2.60606217,58495.0,58494.0,0.0019053]
[1723692088997,3.61855891,58495.0,58494.0,0.0019053]
[1723692089117,3.61855891,58495.0,58494.0,0.0029053]
[1723692089118,3.04917125,58495.0,58494.0,0.0029053]
[1723692089317,3.10009822,58495.0,58494.0,0.0029053]
[1723692089516,3.04917125,58495.0,58494.0,0.0019053]
[1723692089781,3.10010489,58495.0,58494.0,0.0019053]
[1723692089991,3.05936466,58495.0,58494.0,0.0029053]
[1723692090244,3.13177796,58495.0,58494.0,0.0019053]
[1723692090447,3.89628441,58495.0,58494.0,0.0009053]
[1723692090624,3.84836466,58495.0,58494.0,0.0019053]
[1723692091430,3.92477796,58495.0,58494.0,0.0019053]
[1723692091645,3.92477796,58495.0,58494.0,0.0029053]
[1723692092967,3.84836466,58495.0,58494.0,0.0029053]
[1723692093171,3.82628182,58495.0,58494.0,0.0029053]
[1723692093582,3.82628529,58495.0,58494.0,0.0029053]
[1723692093987,3.03628529,58495.0,58494.0,0.0029053]
[1723692094394,2.98534523,58495.0,58494.0,0.0029053]
[1723692094978,2.98534523,58495.0,58490.0,0.0851]
[1723692094979,0.837735,58491.0,58490.0,0.0851]
[1723692095177,0.837735,58491.0,58490.0,0.2541]
[1723692095178,0.598382,58491.0,58490.0,0.2541]
[1723692095378,0.837735,58491.0,58490.0,0.2541]
[1723692095781,0.83752924,58491.0,58490.0,0.2541]
[1723692096194,0.83752924,58491.0,58490.0,0.0851]
[1723692096524,0.83752924,58491.0,58490.0,0.0871]
[1723692096525,0.91042924,58491.0,58490.0,0.0871]
[1723692097048,1.70042924,58491.0,58490.0,0.0871]
[1723692098594,0.96137729,58491.0,58490.0,0.0871]
[1723692098789,2.21243076,58491.0,58490.0,0.0871]
[1723692099124,2.16148271,58491.0,58490.0,0.0871]
[1723692099539,2.25986352,58491.0,58490.0,0.0871]
[1723692100950,2.25986855,58491.0,58490.0,0.0871]
[1723692101153,2.28538321,58491.0,58490.0,0.0871]
[1723692101364,2.20883923,58491.0,58490.0,0.0871]
[1723692101564,2.28538321,58491.0,58490.0,0.0871]
[1723692101701,2.23802669,58491.0,58490.0,0.0871]
[1723692101917,2.16148271,58491.0,58490.0,0.0871]
[1723692102331,2.21251144,58491.0,58490.0,0.0871]
[1723692103160,2.21251144,58491.0,58490.0,0.0880053]
[1723692103568,2.16148271,58491.0,58490.0,0.0880053]
[1723692104002,2.33601561,58491.0,58490.0,0.0880053]
[1723692104563,2.33303725,58491.0,58490.0,0.0880053]
[1723692105698,2.16148271,58491.0,58490.0,0.0880053]
[1723692107271,2.21251144,58491.0,58490.0,0.0880053]
[1723692107479,2.16148271,58491.0,58490.0,0.0880053]
[1723692109088,3.17083571,58491.0,58490.0,0.0880053]
[1723692109315,3.17083571,58491.0,58477.0,0.0009053]
[1723692109316,0.1167,58488.0,58477.0,0.0009053]
[1723692109488,0.20548027,58478.0,58477.0,0.0009053]
[1723692109694,1.44532038,58478.0,58477.0,0.0009053]
[1723692109895,1.68472638,58478.0,58477.0,0.0009053]
[1723692110141,1.68472108,58478.0,58477.0,0.0009053]
[1723692110332,0.97472108,58478.0,58477.0,0.0009053]
[1723692110539,0.97472108,58478.0,58477.0,0.0019053]
[1723692110749,0.97472108,58478.0,58477.0,0.0009053]
[1723692110951,0.92369827,58478.0,58477.0,0.0009053]
[1723692111245,0.92369827,58478.0,58477.0,0.0019053]
[1723692111246,0.93369827,58478.0,58477.0,0.0019053]
[1723692111866,0.94169827,58478.0,58477.0,0.0029053]
[1723692112527,0.93169827,58478.0,58477.0,0.0019053]
[1723692112738,0.93969827,58478.0,58477.0,0.0019053]
[1723692112952,0.93169827,58478.0,58477.0,0.0019053]
[1723692113120,0.92369827,58478.0,58477.0,0.0009053]
[1723692113333,0.93069827,58478.0,58477.0,0.0009053]
[1723692113513,2.09874644,58478.0,58477.0,0.0009053]
[1723692114738,2.10906401,58478.0,58477.0,0.0009053]
[1723692115565,2.16008682,58478.0,58477.0,0.0009053]
[1723692115983,2.10906401,58478.0,58477.0,0.0009053]
[1723692117266,2.10906401,58478.0,58477.0,0.0820053]
[1723692121385,2.16008682,58478.0,58477.0,0.0820053]
[1723692122028,2.10906401,58478.0,58477.0,0.0820053]
[1723692122235,2.2586673,58478.0,58477.0,0.0820053]
[1723692122433,2.18559822,58478.0,58477.0,0.0820053]
[1723692122632,2.10906401,58478.0,58477.0,0.0820053]
[1723692123424,2.18559822,58478.0,58477.0,0.0820053]
[1723692123837,2.18213927,58478.0,58477.0,0.0820053]
[1723692124540,2.53561667,58478.0,58477.0,0.0820053]
[1723692124689,2.46254141,58478.0,58477.0,0.0820053]
[1723692125875,2.4629173,58478.0,58477.0,0.0820053]
[1723692126080,2.36087168,58478.0,58477.0,0.0820053]
[1723692126438,2.4884287,58478.0,58477.0,0.0820053]
[1723692127918,2.12753936,58478.0,58477.0,0.1465053]
[1723692128072,2.12818508,58478.0,58477.0,0.1465053]
[1723692128471,2.0260196,58478.0,58477.0,0.1465053]
[1723692129293,2.15372646,58478.0,58477.0,0.1465053]
[1723692129702,2.1282706,58478.0,58477.0,0.1465053]
[1723692130412,2.15372646,58478.0,58477.0,0.1465053]
[1723692130641,2.0260196,58478.0,58477.0,0.1465053]
[1723692130842,2.15388569,58478.0,58477.0,0.1465053]
[1723692131039,2.0260196,58478.0,58477.0,0.1465053]
[1723692131412,2.02675982,58478.0,58477.0,0.1465053]
[1723692132676,2.80675982,58478.0,58477.0,0.0009053]
[1723692132876,3.20477048,58478.0,58477.0,0.0009053]
[1723692133069,3.44417703,58478.0,58477.0,0.0009053]
[1723692133488,3.62036583,58478.0,58477.0,0.0009053]
[1723692133801,4.17812637,58478.0,58477.0,0.0009053]
[1723692133946,4.17812637,58478.0,58467.0,0.0821]
[1723692133947,0.838019,58471.0,58467.0,0.0821]
[1723692134158,0.838019,58471.0,58463.0,0.0009053]
[1723692134159,2.68779927,58471.0,58463.0,0.0009053]
[1723692134415,3.03112293,58471.0,58463.0,0.0009053]
[1723692135014,2.92597569,58471.0,58463.0,0.0009053]
[1723692135231,2.92797569,58471.0,58463.0,0.0009053]
[1723692135499,2.93397569,58471.0,58470.0,0.0019053]
[1723692135612,2.61551925,58471.0,58470.0,0.0019053]
[1723692135814,2.61551925,58471.0,58470.0,0.0840053]
[1723692135815,2.04488007,58471.0,58470.0,0.0840053]
[1723692136080,1.25488007,58471.0,58470.0,0.0840053]
[1723692136238,1.1758721,58471.0,58470.0,0.0830053]
[1723692136443,1.1738721,58471.0,58470.0,0.0830053]
[1723692136646,1.1798721,58471.0,58470.0,0.0840053]
[1723692136820,1.1838721,58471.0,58470.0,0.0840053]
[1723692137229,1.1798721,58471.0,58470.0,0.0840053]
[1723692137685,1.1838721,58471.0,58470.0,0.0840053]
[1723692138294,1.25689016,58471.0,58470.0,0.0840053]
[1723692138465,1.1838721,58471.0,58470.0,0.0840053]
[1723692138669,1.25690141,58471.0,58470.0,0.0840053]
[1723692138949,1.26724571,58471.0,58470.0,0.0840053]
[1723692140061,2.19325321,58471.0,58470.0,0.0840053]
[1723692140258,2.34665745,58471.0,58470.0,0.0019053]
[1723692140452,2.25665321,58471.0,58470.0,0.0019053]
[1723692140686,3.65913538,58471.0,58470.0,0.0019053]
[1723692140856,4.13717811,58471.0,58470.0,0.0019053]
[1723692141084,3.81253962,58471.0,58470.0,0.0019053]
[1723692141412,3.57306026,58471.0,58470.0,0.0019053]
[1723692141631,3.81249426,58471.0,58470.0,0.0019053]
[1723692142050,4.13756671,58471.0,58470.0,0.0019053]
[1723692142267,3.81249426,58471.0,58470.0,0.0019053]
[1723692142474,4.13719631,58471.0,58470.0,0.0019053]
[1723692142629,3.81249426,58471.0,58470.0,0.0019053]
[1723692142828,3.9845921,58471.0,58470.0,0.0019053]
[1723692143477,4.13795452,58471.0,58470.0,0.0019053]
[1723692143934,3.8124978,58471.0,58470.0,0.0019053]
[1723692144135,3.4070563,58471.0,58470.0,0.0019053]
[1723692144340,3.6464903,58471.0,58470.0,0.0019053]
[1723692144543,3.4070563,58471.0,58470.0,0.0019053]
[1723692144754,3.6464903,58471.0,58470.0,0.0019053]
[1723692144961,3.81787039,58471.0,58470.0,0.0019053]
[1723692145172,4.00991701,58471.0,58470.0,0.0019053]
[1723692145377,3.85656141,58471.0,58470.0,0.0019053]
[1723692145613,4.02811595,58471.0,58470.0,0.0019053]
[1723692146169,1.16114287,58470.0,58464.0,0.0758]
[1723692146374,0.9658996,58465.0,58464.0,0.0758]
[1723692146575,1.31309994,58465.0,58464.0,0.0758]
[1723692147274,1.0658996,58465.0,58464.0,0.0758]
[1723692147499,0.938106,58465.0,58464.0,0.1376]
[1723692148110,0.938106,58465.0,58464.0,0.1406]
[1723692148898,0.938106,58465.0,58464.0,0.1416]
[1723692150631,0.119729,58465.0,58464.0,0.01825053]
[1723692150944,0.119729,58465.0,58464.0,0.16564957]
[1723692152223,1.52033087,58465.0,58464.0,0.16564957]
[1723692152623,1.28087187,58465.0,58464.0,0.16564957]
[1723692152840,1.28087187,58465.0,58464.0,0.16655487]
[1723692153232,1.16114287,58465.0,58464.0,0.16655487]
[1723692154601,1.28087187,58465.0,58464.0,0.16655487]
[1723692154830,1.28087187,58465.0,58464.0,0.15230434]
[1723692156942,1.52033087,58465.0,58464.0,0.15230434]
[1723692157339,1.28087187,58465.0,58464.0,0.15230434]
[1723692158116,0.119729,58465.0,58464.0,0.15230434]
[1723692159292,0.17091191,58465.0,58464.0,0.15230434]
[1723692159482,0.41037091,58465.0,58464.0,0.15230434]
[1723692159811,0.17091191,58465.0,58464.0,0.1441053]
[1723692160178,0.73560718,58465.0,58464.0,0.15229303]
[1723692160515,0.44496527,58465.0,58464.0,0.15229303]
[1723692160635,0.44496527,58465.0,58464.0,0.1441053]
[1723692161242,0.68442427,58465.0,58464.0,0.1441053]
[1723692162474,0.56469527,58465.0,58464.0,0.15860636]
[1723692163541,0.92388327,58465.0,58464.0,0.15860636]
[1723692164155,2.08502614,58465.0,58464.0,0.15860636]
[1723692164331,1.99924887,58465.0,58464.0,0.15860636]
[1723692164731,2.00967391,58465.0,58464.0,0.15860636]
[1723692165781,2.00967391,58465.0,58464.0,0.1441053]
[1723692165982,1.75978987,58465.0,58464.0,0.1441053]
[1723692167356,1.52033087,58465.0,58464.0,0.1441053]
[1723692169211,1.57149993,58465.0,58464.0,0.1441053]
[1723692171163,1.81095893,58465.0,58464.0,0.1441053]
[1723692172001,1.81095893,58465.0,58464.0,0.0823053]
[1723692172401,1.75978987,58465.0,58464.0,0.0823053]
[1723692173253,1.83654346,58465.0,58464.0,0.0823053]
[1723692174585,1.59708446,58465.0,58464.0,0.0823053]
[1723692175423,1.52033087,58465.0,58464.0,0.0823053]
[1723692176068,1.52033087,58465.0,58464.0,0.1762053]
[1723692176282,1.87415762,58465.0,58464.0,0.1762053]
[1723692178342,1.89974215,58465.0,58464.0,0.1762053]
[1723692178491,1.89969341,58465.0,58464.0,0.1762053]
[1723692178713,1.90051641,58465.0,58464.0,0.1762053]
[1723692178897,1.90051641,58465.0,58464.0,0.20029636]
[1723692180109,2.01205276,58465.0,58464.0,0.0049053]
[1723692180325,2.68368231,58465.0,58464.0,0.0049053]
[1723692180537,2.6700458,58465.0,58464.0,0.0049053]
[1723692180821,2.9095048,58465.0,58464.0,0.0049053]
[1723692181061,2.91969491,58465.0,58464.0,0.0049053]
[1723692181306,2.91969491,58465.0,58464.0,0.0019053]
[1723692181880,2.91969491,58465.0,58464.0,0.0009053]
[1723692182135,2.68023591,58465.0,58464.0,0.0009053]
[1723692182331,1.68368137,58465.0,58464.0,0.0019053]
[1723692182552,1.84832554,58465.0,58464.0,0.0019053]
[1723692182761,1.7832768,58465.0,58464.0,0.0781053]
[1723692182967,1.7942768,58465.0,58464.0,0.0019053]
[1723692183345,1.62163263,58465.0,58464.0,0.0019053]
[1723692184731,1.60625781,58465.0,58464.0,0.0019053]
[1723692185131,1.60620907,58465.0,58464.0,0.0019053]
[1723692186050,1.66930907,58465.0,58464.0,0.0019053]
[1723692186459,2.41926033,58465.0,58464.0,0.0019053]
[1723692186857,1.66926033,58465.0,58464.0,0.0019053]
[1723692187226,1.60616033,58465.0,58464.0,0.0019053]
[1723692187641,1.60611159,58465.0,58464.0,0.0019053]
[1723692189269,1.60813143,58465.0,58464.0,0.0019053]
[1723692189495,1.21338047,58465.0,58464.0,0.1444053]
[1723692189911,1.21338047,58465.0,58464.0,0.10292636]
[1723692190057,1.21338047,58465.0,58464.0,0.0790053]
[1723692196814,2.37452334,58465.0,58464.0,0.0790053]
[1723692197844,2.27452334,58465.0,58464.0,0.0790053]
[1723692198059,2.26433323,58465.0,58464.0,0.0790053]
[1723692198412,2.26747717,58465.0,58464.0,0.0790053]
[1723692198772,2.26747717,58465.0,58464.0,0.1453053]
[1723692199179,2.26747717,58465.0,58464.0,0.16931636]
[1723692200283,2.26747717,58465.0,58464.0,0.1453053]
[1723692201521,2.26747717,58465.0,58464.0,0.0790053]
[1723692202916,2.26788532,58465.0,58464.0,0.0790053]
[1723692203566,2.26788532,58465.0,58464.0,0.0019053]
[1723692204181,3.57111607,58465.0,58464.0,0.0019053]
[1723692205093,2.72811607,58465.0,58464.0,0.0019053]
[1723692205928,3.51811607,58465.0,58464.0,0.0019053]
[1723692206130,3.61811607,58465.0,58464.0,0.0019053]
[1723692206336,2.82811607,58465.0,58464.0,0.0019053]
[1723692207527,2.82513179,58465.0,58464.0,0.0019053]
[1723692207902,3.06459079,58465.0,58464.0,0.0019053]
[1723692208879,2.82513179,58465.0,58464.0,0.0019053]
[1723692210135,3.06459079,58465.0,58464.0,0.0019053]
[1723692210444,3.77459079,58465.0,58464.0,0.0019053]
[1723692211477,3.85459079,58465.0,58464.0,0.0019053]
[1723692212845,4.02614533,58465.0,58464.0,0.0019053]
[1723692214634,0.957888,58462.0,58459.0,0.00085403]
[1723692214843,0.119739,58460.0,58459.0,0.00085403]
[1723692215035,1.15576283,58460.0,58459.0,0.00085403]
[1723692215994,1.15576283,58460.0,58459.0,0.00185403]
[1723692216206,1.94576283,58460.0,58459.0,0.00185403]
[1723692216405,1.94576283,58460.0,58459.0,0.00085403]
[1723692216617,1.70624056,58460.0,58459.0,0.00085403]
[1723692216818,1.95459716,58460.0,58459.0,0.00085403]
[1723692217911,1.95459716,58460.0,58459.0,0.09475403]
[1723692218076,1.95459716,58460.0,58459.0,0.24185403]
[1723692219380,1.71024056,58460.0,58459.0,0.24185403]
[1723692219530,1.95457638,58460.0,58459.0,0.24185403]
[1723692219908,1.16457638,58460.0,58459.0,0.26703515]
[1723692220276,0.68561838,58460.0,58459.0,0.24185403]
[1723692220488,0.92509738,58460.0,58459.0,0.24185403]
[1723692220662,2.08342965,58460.0,58459.0,0.24185403]
[1723692221395,2.08342965,58460.0,58459.0,0.14795403]
[1723692221597,2.08342965,58460.0,58459.0,0.24185403]
[1723692221773,2.01036509,58460.0,58459.0,0.24185403]
[1723692224627,2.01036509,58460.0,58459.0,0.14795403]
[1723692224831,2.08350009,58460.0,58459.0,0.14795403]
[1723692225053,1.83916427,58460.0,58459.0,0.14795403]
[1723692226787,2.08544705,58460.0,58459.0,0.17313515]
[1723692227440,2.08544705,58460.0,58459.0,0.14795403]
[1723692227637,2.01231205,58460.0,58459.0,0.14795403]
[1723692228055,1.77283305,58460.0,58459.0,0.14795403]
[1723692229327,2.01231205,58460.0,58459.0,0.14795403]
[1723692229533,1.77283305,58460.0,58459.0,0.14795403]
[1723692230591,1.6616606,58460.0,58459.0,0.17313515]
[1723692230790,1.6616606,58460.0,58459.0,0.18030863]
[1723692230969,1.51625967,58460.0,58459.0,0.18030863]
[1723692231171,1.16733227,58460.0,58459.0,0.18030863]
[1723692232205,1.16733227,58460.0,58459.0,0.30005063]
[1723692232206,1.24429875,58460.0,58459.0,0.30005063]
[1723692232737,1.21864197,58460.0,58459.0,0.30005063]
[1723692233304,1.16733227,58460.0,58459.0,0.30005063]
[1723692234012,1.21864197,58460.0,58459.0,0.71108917]
[1723692234276,0.62739157,58470.0,58459.0,0.71108917]
[1723692234277,0.000823,58465.0,58464.0,0.359194]
[1723692234470,0.000823,58465.0,58464.0,1.29569394]
[1723692234593,0.000823,58465.0,58464.0,1.30370678]
[1723692235048,0.000823,58465.0,58464.0,1.31055578]
[1723692235701,0.000823,58465.0,58464.0,1.31255578]
[1723692236786,0.000823,58465.0,58464.0,1.31055578]
[1723692237229,0.000823,58465.0,58464.0,1.33488024]
[1723692237230,0.001823,58465.0,58464.0,1.33488024]
[1723692237507,0.002823,58465.0,58464.0,1.33688024]
[1723692237708,0.002823,58465.0,58464.0,1.33888024]
[1723692241397,0.002823,58465.0,58464.0,1.33688024]
[1723692246932,0.002823,58465.0,58464.0,1.24298024]
[1723692247173,0.002823,58465.0,58464.0,1.33688024]
[1723692247554,0.002823,58465.0,58464.0,1.00351724]
[1723692247753,0.002823,58465.0,58464.0,0.60131778]
[1723692249450,0.002823,58465.0,58464.0,0.84078078]
[1723692250456,0.002823,58465.0,58464.0,1.08024378]
[1723692264444,0.002823,58465.0,58464.0,1.31970678]
[1723692267466,0.08577727,58474.0,58471.0,0.239433]
[1723692267467,0.08564062,58474.0,58471.0,0.239433]
[1723692267675,0.08564062,58474.0,58473.0,0.213613]
[1723692267874,0.08564062,58474.0,58473.0,0.38516754]
[1723692268077,0.08564062,58474.0,58473.0,0.26545454]
[1723692268280,0.08564062,58474.0,58473.0,0.27331937]
[1723692268968,0.08664062,58474.0,58473.0,0.27331937]
[1723692269173,0.08664062,58474.0,58473.0,0.34766034]
[1723692269587,0.80119562,58474.0,58473.0,0.00786483]
[1723692269789,2.19894989,58474.0,58473.0,0.00786483]
[1723692270117,2.19894989,58474.0,58463.0,0.0939]
[1723692270118,0.064,58465.0,58463.0,0.0939]
[1723692270314,0.68443427,58464.0,58463.0,0.0939]
[1723692270487,0.80143427,58464.0,58463.0,0.10346593]
[1723692270899,0.80143427,58464.0,58463.0,0.0939]
[1723692271328,0.80143427,58464.0,58463.0,0.1019]
[1723692271693,0.81160533,58464.0,58463.0,0.0939]
[1723692271903,0.80143427,58464.0,58463.0,0.1069]
[1723692272423,0.80143427,58464.0,58463.0,0.0939]
[1723692272633,0.715657,58464.0,58463.0,0.0939]
[1723692272983,0.715657,58464.0,58463.0,0.1079]
[1723692272984,0.717657,58464.0,58463.0,0.1079]
[1723692273388,0.716657,58464.0,58463.0,0.1009]
[1723692273632,0.716657,58464.0,58463.0,0.1069]
[1723692273858,0.717657,58464.0,58463.0,0.1069]
[1723692274038,0.478194,58464.0,58463.0,0.11776593]
[1723692275018,0.425194,58464.0,58463.0,0.11776593]
[1723692276862,0.425194,58464.0,58463.0,0.1069]
[1723692277840,0.425194,58464.0,58463.0,0.1841]
[1723692277841,0.002,58464.0,58463.0,0.1841]
[1723692278386,0.121731,58464.0,58463.0,0.11474035]
[1723692279725,0.121731,58464.0,58463.0,0.1069]
[1723692281912,0.121731,58464.0,58463.0,0.11479809]
[1723692283489,0.121731,58464.0,58463.0,0.17009603]
[1723692283688,0.12152517,58464.0,58463.0,0.17009603]
[1723692286267,0.12152517,58464.0,58463.0,0.11479809]
[1723692286416,0.36098817,58464.0,58463.0,0.11570339]
[1723692287067,0.00179417,58464.0,58463.0,0.11570339]
[1723692288049,0.12152517,58464.0,58463.0,0.11570339]
[1723692289524,0.12152517,58464.0,58463.0,0.02180339]
[1723692289731,0.12152517,58464.0,58463.0,0.12577966]
[1723692292563,0.36098817,58464.0,58463.0,0.12577966]
[1723692294211,0.60045117,58464.0,58463.0,0.12577966]
[1723692297320,0.66275117,58464.0,58463.0,0.11570339]
[1723692297545,0.90221417,58464.0,58463.0,0.02180339]
[1723692297706,0.95521417,58464.0,58463.0,0.02180339]
[1723692297912,0.95521417,58464.0,58463.0,0.0139053]
[1723692299600,0.95342,58464.0,58463.0,0.0009053]
[1723692299778,0.95342,58464.0,58463.0,0.0039053]
[1723692300224,1.02640818,58464.0,58463.0,0.0039053]
[1723692300816,1.02723118,58464.0,58463.0,0.0039053]
[1723692303061,1.81723118,58464.0,58463.0,0.0039053]
[1723692303461,1.02723118,58464.0,58463.0,0.0039053]
[1723692305627,1.81723118,58464.0,58463.0,0.0039053]
[1723692306736,1.76423118,58464.0,58463.0,0.0039053]
[1723692308488,0.97423118,58464.0,58463.0,0.0039053]
[1723692308695,0.59948,58464.0,58463.0,0.02151176]
[1723692308918,0.59948,58464.0,58463.0,0.10792394]
[1723692309929,1.87628,58464.0,58463.0,0.10792394]
[1723692310130,1.87628,58464.0,58463.0,0.10001176]
[1723692310333,1.87628,58464.0,58463.0,0.0824053]
[1723692312684,1.636817,58464.0,58463.0,0.0824053]
[1723692312889,1.277623,58464.0,58463.0,0.1438053]
[1723692313100,1.397354,58464.0,58463.0,0.1438053]
[1723692313308,1.397354,58464.0,58463.0,0.18763784]
[1723692314666,1.277623,58464.0,58463.0,0.18763784]
[1723692314868,1.277623,58464.0,58463.0,0.47892538]
[1723692316099,1.277623,58464.0,58463.0,0.95785938]
[1723692317181,1.277623,58464.0,58463.0,0.95585938]
[1723692317404,1.277623,58464.0,58463.0,0.96520358]
[1723692317567,1.279623,58464.0,58463.0,0.97920358]
[1723692319863,0.002823,58464.0,58463.0,0.97920358]
[1723692320063,0.002823,58464.0,58463.0,1.21867058]
[1723692321078,0.002823,58464.0,58463.0,1.22067058]
[1723692321507,0.002823,58464.0,58463.0,1.21867058]
[1723692322031,0.002823,58464.0,58463.0,1.22067058]
[1723692322664,0.002823,58464.0,58463.0,1.21867058]
[1723692323179,0.002823,58464.0,58463.0,1.22067058]
[1723692324387,0.002823,58464.0,58463.0,1.21867058]
[1723692328320,0.002823,58464.0,58463.0,1.22067058]
[1723692330072,0.002823,58464.0,58463.0,1.21867058]
[1723692335787,0.002823,58464.0,58463.0,1.22067058]
[1723692344310,0.002823,58464.0,58463.0,1.3981827]
[1723692344507,0.002823,58464.0,58463.0,1.22067058]
[1723692345142,0.002823,58464.0,58463.0,1.46013758]
[1723692345353,0.000823,58474.0,58463.0,1.46013758]
[1723692345354,0.000823,58474.0,58473.0,0.259913]
[1723692345551,0.01440801,58480.0,58479.0,0.736705]
[1723692345755,0.01440801,58480.0,58479.0,1.58296354]
[1723692345954,0.01440801,58480.0,58479.0,1.75842604]
[1723692346190,0.01440801,58480.0,58479.0,1.52682717]
[1723692346424,0.01440801,58480.0,58479.0,1.52682593]
[1723692346623,0.01440801,58480.0,58479.0,1.67970852]
[1723692346750,0.01440801,58480.0,58479.0,1.50424726]
[1723692346957,0.01440801,58480.0,58479.0,1.51824726]
[1723692347888,0.01540801,58480.0,58479.0,1.53124726]
[1723692348068,0.01540801,58480.0,58479.0,1.53946691]
[1723692349426,0.01623101,58480.0,58479.0,1.54146691]
[1723692349972,0.01623101,58480.0,58479.0,1.53946691]
[1723692350801,0.01623101,58480.0,58479.0,1.54146691]
[1723692351158,0.01623101,58480.0,58479.0,1.53946691]
[1723692351456,0.01623101,58480.0,58479.0,1.54146691]
[1723692351679,1.29303101,58480.0,58479.0,1.54146691]
[1723692351870,1.29303101,58480.0,58479.0,1.53946691]
[1723692353238,1.29303101,58480.0,58479.0,1.54146691]
[1723692356415,0.01623101,58480.0,58479.0,1.54146691]
[1723692356644,0.000823,58490.0,58489.0,0.504141]
[1723692356844,0.000823,58490.0,58489.0,0.96547064]
[1723692356991,0.000823,58490.0,58489.0,0.97314154]
[1723692357993,0.000823,58490.0,58489.0,0.97614154]
[1723692359924,0.000823,58490.0,58489.0,0.97614154]
[1723692360527,0.000823,58490.0,58489.0,0.98638691]
[1723692362115,0.000823,58490.0,58489.0,1.22574791]
[1723692362364,0.065423,58506.0,58494.0,0.239339]
[1723692362568,0.065423,58506.0,58505.0,0.0939]
[1723692363282,0.065423,58506.0,58505.0,0.10152156]
[1723692363635,0.066423,58506.0,58505.0,0.10152156]
[1723692363990,0.185068,58506.0,58505.0,0.10152156]
[1723692364419,0.186068,58506.0,58505.0,0.10252156]
[1723692364626,0.197068,58506.0,58505.0,0.12473892]
[1723692365175,0.186068,58506.0,58505.0,0.12473892]
[1723692365374,0.197068,58506.0,58505.0,0.12573892]
[1723692368849,0.197068,58506.0,58505.0,0.10352156]
[1723692375055,0.72865,58506.0,58505.0,0.00962156]
[1723692375493,0.967941,58506.0,58505.0,0.002]
[1723692375698,2.34160065,58506.0,58505.0,0.002]
[1723692375897,2.34160065,58506.0,58478.0,0.0758]
[1723692375898,0.119696,58482.0,58480.0,0.0939]
[1723692376025,0.239393,58481.0,58472.0,0.71017762]
[1723692376225,0.119699,58480.0,58479.0,0.0939]
[1723692376426,0.119699,58480.0,58479.0,0.13241615]
[1723692376629,0.359097,58480.0,58479.0,0.13241615]
[1723692377200,0.119699,58480.0,58479.0,0.13241615]
[1723692377629,0.119693,58483.0,58480.0,0.0758]
[1723692377832,0.239381,58485.0,58482.0,0.0939]
[1723692377980,0.239381,58484.0,58481.0,0.04994707]
[1723692378411,0.119694,58482.0,58481.0,0.04994707]
[1723692380331,0.120694,58482.0,58481.0,0.05694707]
[1723692381032,0.121694,58482.0,58481.0,0.06094707]
[1723692381195,1.398494,58482.0,58481.0,0.06094707]
[1723692381806,1.398494,58482.0,58481.0,0.06858299]
[1723692383530,1.2788,58482.0,58481.0,0.24013753]
[1723692383877,1.2788,58482.0,58481.0,0.44183353]
[1723692387104,1.2788,58482.0,58481.0,0.92061953]
[1723692387300,1.2788,58482.0,58481.0,0.44183353]
[1723692388365,1.2788,58482.0,58481.0,0.68122653]
[1723692391391,1.2788,58482.0,58481.0,0.44183353]
[1723692392319,1.2788,58482.0,58481.0,0.68122653]
[1723692392725,1.2788,58482.0,58481.0,0.74712653]
[1723692396478,1.2788,58482.0,58481.0,0.98651953]
[1723692396879,1.2788,58482.0,58481.0,0.74712653]
[1723692398994,1.2788,58482.0,58481.0,0.74803073]
[1723692399958,1.2788,58482.0,58481.0,0.84193073]
[1723692401182,1.2788,58482.0,58481.0,0.53663773]
[1723692403033,1.2788,58482.0,58481.0,0.77603073]
[1723692408369,1.2788,58482.0,58481.0,0.53663773]
[1723692411207,1.2788,58482.0,58481.0,0.45463773]
[1723692412647,1.2788,58482.0,58481.0,0.77043073]
[1723692413184,0.002,58482.0,58481.0,0.53103773]
[1723692414157,0.002,58482.0,58481.0,0.83353073]
[1723692420355,1.2805,58482.0,58481.0,0.83353073]
[1723692424157,1.2805,58482.0,58481.0,0.41134173]
[1723692425527,1.2805,58482.0,58481.0,0.53103773]
[1723692426094,1.2805,58482.0,58481.0,0.33494173]
[1723692426298,1.2805,58482.0,58481.0,0.45463773]
[1723692428537,1.2805,58482.0,58481.0,0.53753773]
[1723692431474,1.2805,58482.0,58481.0,0.44363773]
[1723692431747,1.2805,58482.0,58481.0,0.53753773]
[1723692433108,1.938972,58482.0,58481.0,0.01954012]
[1723692433524,1.938972,58482.0,58481.0,0.0119042]
[1723692433525,2.178361,58482.0,58481.0,0.0119042]
[1723692434079,1.938972,58482.0,58481.0,0.0119042]
[1723692434282,2.0156626,58482.0,58481.0,0.0119042]
[1723692434902,1.938972,58482.0,58481.0,0.0119042]
[1723692435821,1.78691313,58482.0,58481.0,0.0119042]
[1723692436361,1.79734849,58482.0,58481.0,0.0119042]
[1723692436764,1.78691313,58482.0,58481.0,0.0119042]
[1723692437308,1.72691313,58482.0,58481.0,0.10387504]
[1723692437656,1.72691313,58482.0,58481.0,0.02257504]
[1723692438087,1.24813513,58482.0,58481.0,0.10387504]
[1723692438293,1.48752413,58482.0,58481.0,0.10387504]